bitfinex/quotes_BTCUSD_20250124
["timestamp","ask_amount","ask_price","bid_price","bid_amount"]
[1737715570550,0.32967596,105230.0,105220.0,0.00063356]
[1737715571800,0.33967596,105230.0,105220.0,0.00063356]
[1737715576346,0.24464696,105230.0,105200.0,0.02417566]
[1737715576554,0.095047,105210.0,105200.0,0.02422479]
[1737715577424,0.095047,105210.0,105200.0,0.02522479]
[1737715577870,0.095047,105210.0,105200.0,0.02622479]
[1737715578103,0.095047,105210.0,105200.0,0.02522479]
[1737715578584,0.095047,105210.0,105200.0,0.02722479]
[1737715579219,0.76266629,105220.0,105200.0,0.02722479]
[1737715579842,0.095047,105210.0,105200.0,0.02722479]
[1737715580263,0.095047,105210.0,105200.0,0.02622479]
[1737715580447,0.095047,105210.0,105200.0,0.02722479]
[1737715580845,0.095047,105210.0,105200.0,0.02622479]
[1737715581047,0.095047,105210.0,105200.0,0.02422479]
[1737715581247,0.095047,105210.0,105200.0,0.02522479]
[1737715581457,0.095047,105210.0,105200.0,0.02722479]
[1737715581651,0.095047,105210.0,105200.0,0.02522479]
[1737715582209,0.095047,105210.0,105200.0,0.02722479]
[1737715582628,0.19239429,105210.0,105200.0,0.02722479]
[1737715584955,0.20186233,105210.0,105200.0,0.02722479]
[1737715586708,0.20186233,105210.0,105200.0,0.02736699]
[1737715588625,0.10681533,105210.0,105200.0,0.02736699]
[1737715589109,0.20186233,105210.0,105200.0,0.02736699]
[1737715590647,0.20186233,105210.0,105200.0,0.02636699]
[1737715590892,0.20186233,105210.0,105200.0,0.02536699]
[1737715591425,0.20186233,105210.0,105200.0,0.02436699]
[1737715593422,0.3055649,105210.0,105200.0,0.02436699]
[1737715594078,0.41926747,105210.0,105200.0,0.00019133]
[1737715594294,0.54666747,105210.0,105200.0,0.00019133]
[1737715594506,0.56666747,105210.0,105200.0,0.00019133]
[1737715595862,0.58666747,105210.0,105200.0,0.00019133]
[1737715596940,0.57666747,105210.0,105200.0,0.00019133]
[1737715597400,0.59966747,105210.0,105200.0,0.00019133]
[1737715597681,0.57966747,105210.0,105200.0,0.00019133]
[1737715598108,0.58066747,105210.0,105200.0,0.00019133]
[1737715598337,0.58847047,105210.0,105180.0,0.000142]
[1737715598564,0.41981843,105190.0,105180.0,0.00028972]
[1737715598776,1.379375,105180.0,105170.0,0.000142]
[1737715598981,1.40352743,105180.0,105170.0,0.000142]
[1737715599811,1.42652743,105180.0,105170.0,0.000142]
[1737715601078,1.43852743,105180.0,105170.0,0.000142]
[1737715601846,1.44054988,105180.0,105170.0,0.000142]
[1737715602657,1.46865896,105180.0,105170.0,0.000142]
[1737715604531,1.4729222,105180.0,105170.0,0.000142]
[1737715606119,1.47075361,105180.0,105170.0,0.000142]
[1737715612590,1.21495104,105180.0,105170.0,0.000142]
[1737715612825,1.22495104,105180.0,105170.0,0.080242]
[1737715613137,1.20612992,105180.0,105170.0,0.080242]
[1737715613338,1.10242735,105180.0,105170.0,0.080242]
[1737715614112,1.20612992,105180.0,105170.0,0.080242]
[1737715615773,1.19612992,105180.0,105170.0,0.080242]
[1737715616023,1.19612992,105180.0,105170.0,0.000142]
[1737715617499,1.29983249,105180.0,105170.0,0.000142]
[1737715617773,1.19612992,105180.0,105170.0,0.000142]
[1737715618357,1.23417392,105180.0,105170.0,0.000142]
[1737715618589,1.36087649,105180.0,105170.0,0.000142]
[1737715619232,1.25717392,105180.0,105170.0,0.000142]
[1737715620933,1.10242735,105180.0,105170.0,0.083042]
[1737715622150,1.20612992,105180.0,105170.0,0.083042]
[1737715622360,1.20642854,105180.0,105170.0,0.083042]
[1737715624502,1.09272597,105180.0,105170.0,0.083042]
[1737715624976,1.09272597,105180.0,105170.0,0.281842]
[1737715625659,1.08972597,105180.0,105170.0,0.281842]
[1737715625929,1.09172597,105180.0,105170.0,0.281842]
[1737715626179,1.08272597,105180.0,105170.0,0.281842]
[1737715626431,1.08872597,105180.0,105170.0,0.281842]
[1737715626952,0.88701572,105180.0,105170.0,0.376926]
[1737715627981,0.88501572,105180.0,105170.0,0.376926]
[1737715628222,0.88601572,105180.0,105170.0,0.376926]
[1737715628705,0.88501572,105180.0,105170.0,0.376926]
[1737715628947,0.88501572,105180.0,105170.0,0.378926]
[1737715629209,0.87901572,105180.0,105170.0,0.378926]
[1737715629424,0.00741572,105180.0,105170.0,0.378926]
[1737715629643,0.00441572,105180.0,105170.0,0.378926]
[1737715630101,0.00441572,105180.0,105170.0,0.380926]
[1737715646610,0.00441572,105180.0,105170.0,0.380926]
[1737715655186,0.00441572,105180.0,105170.0,0.332126]
[1737715656428,0.33171572,105180.0,105170.0,0.332126]
[1737715658323,0.33171572,105180.0,105170.0,0.237042]
[1737715658552,0.33171572,105180.0,105170.0,0.332126]
[1737715661139,0.42679072,105180.0,105170.0,0.237042]
[1737715661355,0.33171572,105180.0,105170.0,0.332126]
[1737715662418,0.00441572,105180.0,105170.0,0.332126]
[1737715663105,0.01367021,105180.0,105170.0,0.332126]
[1737715665994,0.00441572,105180.0,105170.0,0.332126]
[1737715666909,0.10176301,105180.0,105170.0,0.332126]
[1737715667430,0.00441572,105180.0,105170.0,0.332126]
[1737715668385,0.00441572,105180.0,105170.0,0.331662]
[1737715668865,0.00441572,105180.0,105170.0,0.37505909]
[1737715671318,0.00441572,105180.0,105170.0,0.37467086]
[1737715679054,0.00441572,105180.0,105170.0,0.37481286]
[1737715680477,0.00441572,105180.0,105170.0,0.32911286]
[1737715685610,0.00441572,105180.0,105170.0,0.249226]
[1737715688447,0.00441572,105180.0,105170.0,0.154142]
[1737715688922,0.00441572,105180.0,105170.0,0.249226]
[1737715690510,0.27293801,105180.0,105170.0,0.154142]
[1737715690960,0.28262309,105180.0,105170.0,0.004142]
[1737715695599,0.39632566,105180.0,105170.0,0.004142]
[1737715695815,0.44452566,105180.0,105170.0,0.004142]
[1737715696574,0.57122823,105180.0,105170.0,0.004142]
[1737715696958,0.56122823,105180.0,105170.0,0.004142]
[1737715697167,0.45752566,105180.0,105170.0,0.004142]
[1737715697580,0.47657875,105180.0,105170.0,0.004142]
[1737715702839,0.47657875,105180.0,105170.0,0.002142]
[1737715703318,0.47657875,105180.0,105170.0,0.000142]
[1737715705375,0.48257875,105180.0,105170.0,0.000142]
[1737715705584,0.03,105170.0,105140.0,0.22663339]
[1737715705787,0.70993429,105160.0,105140.0,0.22678122]
[1737715706007,0.71440701,105160.0,105140.0,0.22678122]
[1737715706209,0.71440701,105160.0,105140.0,0.22591482]
[1737715706828,0.71440701,105160.0,105140.0,0.22791482]
[1737715707239,0.71440701,105160.0,105140.0,0.32302482]
[1737715707440,0.71440701,105160.0,105140.0,0.32502482]
[1737715708223,0.71440701,105160.0,105140.0,0.32302482]
[1737715708440,0.71440701,105160.0,105140.0,0.32502482]
[1737715709227,0.71440701,105160.0,105140.0,0.22991482]
[1737715709629,0.71440701,105160.0,105140.0,0.32502582]
[1737715710063,0.3273,105150.0,105140.0,0.32502582]
[1737715710393,0.33174073,105150.0,105140.0,0.32502582]
[1737715711093,0.33174073,105150.0,105140.0,0.22991482]
[1737715711330,0.33174073,105150.0,105140.0,0.22591482]
[1737715711560,0.33174073,105150.0,105140.0,0.22791482]
[1737715711780,0.33174073,105150.0,105140.0,0.22991482]
[1737715712872,0.33174073,105150.0,105140.0,0.23005692]
[1737715715698,0.42684273,105150.0,105140.0,0.15428993]
[1737715715912,0.09954273,105150.0,105140.0,0.15428993]
[1737715716789,0.39635605,105150.0,105140.0,0.00428993]
[1737715717010,0.42635605,105150.0,105140.0,0.00428993]
[1737715717981,1.92635605,105150.0,105140.0,0.00228993]
[1737715718293,2.81695605,105150.0,105140.0,0.00228993]
[1737715718968,2.81695605,105150.0,105140.0,0.00028993]
[1737715719796,2.85382579,105150.0,105140.0,0.00028993]
[1737715720292,2.86382579,105150.0,105140.0,0.00028993]
[1737715720656,2.85382579,105150.0,105140.0,0.00028993]
[1737715721729,2.95806156,105150.0,105140.0,0.00028993]
[1737715722163,2.93806156,105150.0,105140.0,0.00028993]
[1737715723961,1.53845998,105150.0,105140.0,9.3e-07]
[1737715725007,1.53545998,105150.0,105140.0,9.3e-07]
[1737715725267,1.54345998,105150.0,105140.0,9.3e-07]
[1737715725474,1.54645998,105150.0,105140.0,9.3e-07]
[1737715726978,0.345811,105140.0,105130.0,1e-06]
[1737715727194,0.54739406,105140.0,105130.0,1e-06]
[1737715727399,0.5518448,105140.0,105130.0,1e-06]
[1737715728476,0.5538448,105140.0,105130.0,1e-06]
[1737715728896,0.5598448,105140.0,105130.0,1e-06]
[1737715729112,0.4597448,105140.0,105130.0,1e-06]
[1737715729533,0.45979388,105140.0,105130.0,1e-06]
[1737715732145,0.44679388,105140.0,105130.0,1e-06]
[1737715732299,0.23495811,105140.0,105130.0,1e-06]
[1737715732714,0.24462851,105140.0,105130.0,1e-06]
[1737715733146,0.37186428,105140.0,105130.0,1e-06]
[1737715733956,0.37140994,105140.0,105130.0,1e-06]
[1737715734319,0.39054405,105140.0,105130.0,1e-06]
[1737715734637,0.50784405,105140.0,105130.0,1e-06]
[1737715734851,0.51784405,105140.0,105130.0,1e-06]
[1737715735063,0.43814405,105140.0,105130.0,1e-06]
[1737715735490,0.43844247,105140.0,105130.0,1e-06]
[1737715737925,0.53854247,105140.0,105130.0,1e-06]
[1737715738142,0.43844247,105140.0,105130.0,1e-06]
[1737715740398,0.39084247,105140.0,105130.0,1e-06]
[1737715740570,0.39084247,105140.0,105130.0,0.081101]
[1737715740991,0.39084247,105140.0,105130.0,0.231101]
[1737715742027,0.37084247,105140.0,105130.0,0.231101]
[1737715742242,0.39084247,105140.0,105130.0,0.231101]
[1737715742482,0.21447259,105140.0,105130.0,0.231101]
[1737715743373,0.23447259,105140.0,105130.0,0.231101]
[1737715743587,0.33870836,105140.0,105130.0,0.231101]
[1737715745657,0.31870836,105140.0,105130.0,0.231101]
[1737715748350,0.21447259,105140.0,105130.0,0.231101]
[1737715748748,0.31870836,105140.0,105130.0,0.231101]
[1737715749843,0.21447259,105140.0,105130.0,0.231101]
[1737715753451,0.31870836,105140.0,105130.0,0.231101]
[1737715753859,0.31870836,105140.0,105130.0,0.150001]
[1737715755184,0.33870836,105140.0,105130.0,0.150001]
[1737715758933,0.31870836,105140.0,105130.0,0.150001]
[1737715759717,0.21447259,105140.0,105130.0,0.225201]
[1737715761941,0.31870836,105140.0,105130.0,0.225201]
[1737715766899,0.21447259,105140.0,105130.0,0.225201]
[1737715767328,0.31870836,105140.0,105130.0,0.225201]
[1737715767527,1.81870836,105140.0,105130.0,0.225201]
[1737715768156,0.21447259,105140.0,105130.0,0.225201]
[1737715775480,0.31870836,105140.0,105130.0,0.225201]
[1737715775808,0.31870836,105140.0,105130.0,0.150001]
[1737715778563,0.21447259,105140.0,105130.0,0.150001]
[1737715779179,0.21447259,105140.0,105130.0,0.227201]
[1737715785380,0.21447259,105140.0,105130.0,0.150001]
[1737715785605,0.31870836,105140.0,105130.0,0.150001]
[1737715788308,1.81870836,105140.0,105130.0,0.150001]
[1737715788660,0.40000836,105140.0,105130.0,1e-06]
[1737715789715,0.43260995,105140.0,105130.0,1e-06]
[1737715790326,0.45260995,105140.0,105130.0,1e-06]
[1737715790716,0.53040995,105140.0,105130.0,1e-06]
[1737715791756,0.39357259,105140.0,105130.0,1e-06]
[1737715792005,0.49784384,105140.0,105130.0,1e-06]
[1737715797353,1.99784384,105140.0,105130.0,1e-06]
[1737715799435,1.92004384,105140.0,105130.0,1e-06]
[1737715800886,1.71447259,105140.0,105130.0,0.079101]
[1737715802414,1.81874384,105140.0,105130.0,0.079101]
[1737715807841,0.31874384,105140.0,105130.0,0.079101]
[1737715808398,1.81874384,105140.0,105130.0,0.079101]
[1737715808611,1.81874384,105140.0,105130.0,1e-06]
[1737715811183,1.81874384,105140.0,105130.0,0.150001]
[1737715811859,1.78287768,105140.0,105130.0,0.150001]
[1737715817115,0.21447259,105140.0,105130.0,0.079601]
[1737715817590,0.01279824,105140.0,105130.0,0.079601]
[1737715817801,0.01279824,105140.0,105130.0,0.127501]
[1737715818227,0.01279824,105140.0,105130.0,0.372621]
[1737715818673,0.02079824,105140.0,105130.0,0.372621]
[1737715818881,0.01479824,105140.0,105130.0,0.372621]
[1737715819337,0.01779824,105140.0,105130.0,0.372621]
[1737715819554,0.01479824,105140.0,105130.0,0.372621]
[1737715819957,0.01579824,105140.0,105130.0,0.372621]
[1737715821037,0.01479824,105140.0,105130.0,0.372621]
[1737715821241,0.01479824,105140.0,105130.0,0.37219173]
[1737715821489,0.01479824,105140.0,105130.0,0.37319173]
[1737715821903,0.01479824,105140.0,105130.0,0.22319173]
[1737715824283,0.19725653,105140.0,105130.0,0.12807173]
[1737715824726,0.00479824,105140.0,105130.0,0.22319173]
[1737715825144,0.01479824,105140.0,105130.0,0.22319173]
[1737715832079,0.01479824,105140.0,105130.0,0.22333373]
[1737715837000,0.01527498,105140.0,105130.0,0.22333373]
[1737715839512,0.01527498,105140.0,105130.0,0.23288818]
[1737715840884,0.01527498,105140.0,105130.0,0.22333373]
[1737715841340,0.01527498,105140.0,105130.0,0.22433373]
[1737715842137,0.01527498,105140.0,105130.0,0.22333373]
[1737715842831,0.01527498,105140.0,105130.0,0.22533373]
[1737715848527,0.00527498,105140.0,105130.0,0.32268102]
[1737715854300,0.00527498,105140.0,105130.0,0.32168102]
[1737715854540,0.00527498,105140.0,105130.0,0.32368102]
[1737715854752,0.00527498,105140.0,105130.0,0.31968102]
[1737715855252,0.00527498,105140.0,105130.0,0.32268102]
[1737715855605,0.00527498,105140.0,105130.0,0.32168102]
[1737715855806,0.00527498,105140.0,105130.0,0.32268102]
[1737715867484,0.00527498,105140.0,105130.0,0.40696226]
[1737715869254,0.00527498,105140.0,105130.0,0.35906226]
[1737715870407,0.33257498,105140.0,105130.0,0.35906226]
[1737715871253,0.33257498,105140.0,105130.0,0.27478102]
[1737715873246,0.33257498,105140.0,105130.0,0.32078102]
[1737715876224,0.33257498,105140.0,105130.0,0.40506226]
[1737715878903,0.33365065,105140.0,105130.0,0.40506226]
[1737715880948,0.33256501,105140.0,105130.0,0.40506226]
[1737715881095,0.33365065,105140.0,105130.0,0.40506226]
[1737715881475,0.33365065,105140.0,105130.0,0.40406226]
[1737715881682,0.33365065,105140.0,105130.0,0.40506226]
[1737715882306,0.00635065,105140.0,105130.0,0.55506226]
[1737715882922,0.00635065,105140.0,105130.0,0.55306226]
[1737715883268,0.00526501,105140.0,105130.0,0.55606226]
[1737715883684,0.00635065,105140.0,105130.0,0.55606226]
[1737715884303,0.00635065,105140.0,105130.0,0.47178102]
[1737715888899,0.31370751,105160.0,105150.0,0.095102]
[1737715889601,0.32113718,105160.0,105150.0,0.095102]
[1737715890122,0.32113718,105160.0,105150.0,0.096102]
[1737715890363,0.32113718,105160.0,105150.0,0.099102]
[1737715891138,0.32360803,105160.0,105150.0,0.099102]
[1737715893433,0.32360803,105160.0,105150.0,0.2683186]
[1737715893900,0.32360803,105160.0,105150.0,0.3450186]
[1737715896891,0.32360803,105160.0,105150.0,0.35449006]
[1737715899930,0.32360803,105160.0,105150.0,0.35463206]
[1737715900166,0.32390624,105160.0,105150.0,0.35463206]
[1737715904566,0.32390624,105160.0,105150.0,0.27793206]
[1737715911598,0.01019873,105160.0,105150.0,0.37527935]
[1737715911803,0.01019873,105160.0,105150.0,0.45147935]
[1737715912536,0.01019873,105160.0,105150.0,0.45047935]
[1737715912970,0.01019873,105160.0,105150.0,0.44747935]
[1737715913170,0.01019873,105160.0,105150.0,0.45047935]
[1737715913377,0.01019873,105160.0,105150.0,0.45147935]
[1737715916917,0.01019873,105160.0,105150.0,0.53664409]
[1737715924203,0.25086484,105200.0,105190.0,0.15]
[1737715924438,0.44327313,105200.0,105190.0,0.15]
[1737715924676,0.44342092,105200.0,105190.0,0.15]
[1737715925578,0.44542092,105200.0,105190.0,0.15]
[1737715926160,0.44542092,105200.0,105180.0,0.28522]
[1737715926634,0.46167466,105200.0,105190.0,0.001]
[1737715927374,0.50117466,105200.0,105180.0,0.28522]
[1737715927553,0.0791,105190.0,105180.0,0.28522]
[1737715929912,0.0801,105190.0,105180.0,0.28522]
[1737715931924,0.08637597,105190.0,105180.0,0.28522]
[1737715936011,0.08667418,105190.0,105180.0,0.28522]
[1737715939587,0.00757418,105190.0,105180.0,0.28522]
[1737715944164,0.29350168,105190.0,105170.0,0.665559]
[1737715944385,0.38468479,105180.0,105160.0,0.095086]
[1737715944609,0.38468479,105180.0,105160.0,0.285276]
[1737715944610,0.1451615,105170.0,105160.0,0.285276]
[1737715944825,0.08173318,105170.0,105160.0,0.285276]
[1737715946110,0.08173318,105170.0,105160.0,0.288276]
[1737715946329,0.00493318,105170.0,105160.0,0.288276]
[1737715947332,0.00493318,105170.0,105160.0,0.289276]
[1737715949126,0.00493318,105170.0,105160.0,0.289418]
[1737715954763,0.00493318,105170.0,105160.0,0.366718]
[1737715956229,0.00493318,105170.0,105160.0,0.289418]
[1737715966615,0.00493318,105170.0,105160.0,0.289418]
[1737715976299,0.00493318,105170.0,105160.0,0.366918]
[1737715984280,0.0030532,105170.0,105160.0,0.366918]
[1737715984435,0.00492442,105170.0,105160.0,0.366918]
[1737715986234,0.00492442,105170.0,105160.0,0.516918]
[1737715996692,0.07328592,105170.0,105160.0,0.516918]
[1737715997079,0.00492442,105170.0,105160.0,0.516918]
[1737716005939,0.0683615,105180.0,105170.0,0.245084]
[1737716007111,0.0683615,105180.0,105170.0,0.247084]
[1737716007319,0.0683615,105180.0,105170.0,0.248084]
[1737716007748,2.18131713,105190.0,105170.0,0.438246]
[1737716007955,2.27866442,105190.0,105170.0,0.438246]
[1737716008168,2.27866442,105190.0,105170.0,0.628408]
[1737716008599,0.0683615,105180.0,105170.0,0.438246]
[1737716009556,0.0683615,105180.0,105170.0,0.437246]
[1737716009737,2.08852542,105190.0,105170.0,0.437246]
[1737716009976,2.08852542,105190.0,105170.0,0.436246]
[1737716010169,2.08852542,105190.0,105170.0,0.438246]
[1737716010379,2.27866442,105190.0,105170.0,0.437246]
[1737716010586,0.0683615,105180.0,105170.0,0.435246]
[1737716010794,0.26078379,105180.0,105170.0,0.153]
[1737716010999,0.26078379,105180.0,105170.0,0.151]
[1737716011203,0.26078379,105180.0,105170.0,0.15]
[1737716011419,0.26078379,105180.0,105170.0,0.153]
[1737716011626,0.26078379,105180.0,105170.0,0.151]
[1737716012033,0.26078379,105180.0,105170.0,0.153]
[1737716012262,0.45394529,105180.0,105170.0,0.003]
[1737716012850,0.45394529,105180.0,105170.0,0.002]
[1737716013073,0.45394529,105180.0,105170.0,0.003]
[1737716013304,0.45394529,105180.0,105170.0,0.001]
[1737716013510,0.83526329,105180.0,105160.0,0.150142]
[1737716013714,0.0683615,105170.0,105160.0,0.150142]
[1737716013901,0.16570879,105170.0,105160.0,0.150142]
[1737716014423,0.26079279,105170.0,105160.0,0.150142]
[1737716014666,0.26079279,105170.0,105160.0,0.151142]
[1737716014877,0.16570879,105170.0,105160.0,0.151142]
[1737716015078,0.26079279,105170.0,105160.0,0.153142]
[1737716015364,0.16570879,105170.0,105160.0,0.153142]
[1737716015516,0.16570879,105170.0,105160.0,0.248235]
[1737716015742,0.4783995,105180.0,105160.0,0.438418]
[1737716015941,0.38559079,105180.0,105160.0,0.707097]
[1737716016148,0.3273,105170.0,105160.0,0.516914]
[1737716016350,0.3273,105170.0,105160.0,0.515914]
[1737716016775,0.3273,105170.0,105160.0,0.516914]
[1737716016985,0.3273,105170.0,105160.0,0.514914]
[1737716017209,0.3273,105170.0,105160.0,0.516914]
[1737716017475,0.3273,105170.0,105160.0,0.514914]
[1737716017882,0.3273,105170.0,105160.0,0.516914]
[1737716018681,0.3956615,105170.0,105160.0,0.516914]
[1737716019351,0.3273,105170.0,105160.0,0.516914]
[1737716022007,0.57574079,105180.0,105160.0,0.707093]
[1737716022148,0.38559079,105180.0,105160.0,0.707093]
[1737716022764,0.57574079,105180.0,105160.0,0.707093]
[1737716023005,0.57574079,105180.0,105160.0,0.704093]
[1737716023148,0.57574079,105180.0,105160.0,0.705093]
[1737716023363,0.57574079,105180.0,105160.0,0.707093]
[1737716023777,0.00433368,105170.0,105160.0,0.516914]
[1737716024676,0.00433368,105170.0,105160.0,0.513914]
[1737716025007,0.00433368,105170.0,105160.0,0.515914]
[1737716026494,0.00433368,105170.0,105160.0,0.516914]
[1737716030267,0.07269518,105170.0,105160.0,0.516914]
[1737716034333,0.0683615,105170.0,105160.0,0.516914]
[1737716036875,0.07954706,105170.0,105160.0,0.516914]
[1737716038258,0.30878479,105180.0,105160.0,0.516914]
[1737716038386,0.30878479,105180.0,105160.0,0.707093]
[1737716039123,0.30878479,105180.0,105160.0,0.706093]
[1737716039348,0.30878479,105180.0,105160.0,0.894269]
[1737716039562,0.30878479,105180.0,105160.0,0.896269]
[1737716039761,0.30878479,105180.0,105160.0,0.897269]
[1737716039951,0.30878479,105180.0,105160.0,0.70709]
[1737716040167,0.30878479,105180.0,105160.0,0.897266]
[1737716040772,0.30878479,105180.0,105160.0,0.707087]
[1737716040977,0.30878479,105180.0,105160.0,0.897263]
[1737716041299,0.30878479,105180.0,105160.0,0.707087]
[1737716041529,0.30878479,105180.0,105160.0,0.897263]
[1737716041852,0.42946171,105190.0,105180.0,0.15]
[1737716042093,0.451209,105190.0,105180.0,0.15]
[1737716043102,1.951209,105190.0,105180.0,0.15]
[1737716043389,1.956209,105190.0,105180.0,0.15]
[1737716045562,1.96741878,105190.0,105180.0,0.15]
[1737716047636,0.46741878,105190.0,105180.0,0.15]
[1737716048486,0.18221678,105190.0,105180.0,0.321275]
[1737716049545,0.17721678,105190.0,105180.0,0.321275]
[1737716049718,0.17821678,105190.0,105180.0,0.321275]
[1737716050732,0.00129821,105190.0,105180.0,0.321275]
[1737716054248,0.00129821,105190.0,105180.0,0.368275]
[1737716054473,0.00129821,105190.0,105180.0,0.46562229]
[1737716055573,0.00129821,105190.0,105180.0,0.46662229]
[1737716056429,0.00029821,105190.0,105180.0,0.46662229]
[1737716056627,0.00029821,105190.0,105180.0,0.46962229]
[1737716056845,0.00029821,105190.0,105180.0,0.46662229]
[1737716057230,0.00029821,105190.0,105180.0,0.46962229]
[1737716057598,0.32759821,105190.0,105180.0,0.46862229]
[1737716058010,0.32759821,105190.0,105180.0,0.46962229]
[1737716059586,0.32759821,105190.0,105180.0,0.31962229]
[1737716059805,0.00029821,105190.0,105180.0,0.33079501]
[1737716061058,0.00029821,105190.0,105180.0,0.32779501]
[1737716061299,0.00029821,105190.0,105180.0,0.32979501]
[1737716061735,0.00029821,105190.0,105180.0,0.32779501]
[1737716062165,0.00029821,105190.0,105180.0,0.32679501]
[1737716062372,0.00029821,105190.0,105180.0,0.32779501]
[1737716063596,0.00029821,105190.0,105180.0,0.32979501]
[1737716064009,0.00029821,105190.0,105180.0,0.32993701]
[1737716068344,2.1e-07,105190.0,105180.0,0.32993701]
[1737716068605,2.1e-07,105190.0,105180.0,0.34097701]
[1737716069236,2.1e-07,105190.0,105180.0,0.32993701]
[1737716069372,2.1e-07,105190.0,105180.0,0.34097701]
[1737716069792,2.1e-07,105190.0,105180.0,0.32993701]
[1737716070008,2.1e-07,105190.0,105180.0,0.34097701]
[1737716070501,2.1e-07,105190.0,105180.0,0.32993701]
[1737716075311,2.1e-07,105190.0,105180.0,0.18558972]
[1737716075527,0.32730021,105190.0,105180.0,0.098217]
[1737716077274,0.32730021,105190.0,105180.0,0.096217]
[1737716077585,0.32730021,105190.0,105180.0,0.098217]
[1737716077770,0.32730021,105190.0,105180.0,0.097217]
[1737716078067,0.32730021,105190.0,105180.0,0.098217]
[1737716079929,2.1e-07,105190.0,105180.0,0.098217]
[1737716080167,0.04900021,105190.0,105180.0,0.098217]
[1737716080396,0.12780021,105190.0,105180.0,0.003142]
[1737716080605,0.12780021,105190.0,105180.0,0.098217]
[1737716081054,0.12780021,105190.0,105180.0,0.003142]
[1737716081467,0.3202135,105190.0,105180.0,0.003142]
[1737716081697,0.42427423,105190.0,105180.0,0.003142]
[1737716082326,0.42427423,105190.0,105180.0,0.002142]
[1737716082908,0.2251475,105190.0,105180.0,0.095217]
[1737716083108,0.05000021,105190.0,105180.0,0.095217]
[1737716083345,0.00100021,105190.0,105180.0,0.26816429]
[1737716083574,0.00100021,105190.0,105180.0,0.31366429]
[1737716083968,2.1e-07,105190.0,105180.0,0.31366429]
[1737716084390,2.1e-07,105190.0,105180.0,0.31566429]
[1737716084527,2.1e-07,105190.0,105180.0,0.31366429]
[1737716084745,2.1e-07,105190.0,105180.0,0.31466429]
[1737716084938,2.1e-07,105190.0,105180.0,0.31666429]
[1737716085363,2.1e-07,105190.0,105180.0,0.31566429]
[1737716085565,2.1e-07,105190.0,105180.0,0.31666429]
[1737716086887,2.1e-07,105190.0,105180.0,0.32687419]
[1737716090551,2.1e-07,105200.0,105190.0,0.234166]
[1737716090760,2.1e-07,105200.0,105190.0,0.32151329]
[1737716092224,2.1e-07,105200.0,105190.0,0.32251329]
[1737716093500,2.1e-07,105200.0,105190.0,0.32451329]
[1737716110266,2.1e-07,105200.0,105190.0,0.32465529]
[1737716111217,2.1e-07,105200.0,105190.0,0.33465529]
[1737716111420,0.96471225,105220.0,105210.0,0.175647]
[1737716111735,0.96471225,105220.0,105210.0,0.34013429]
[1737716111936,0.96471225,105220.0,105210.0,0.36013429]
[1737716112135,0.90768825,105220.0,105210.0,0.36013429]
[1737716112345,0.87385431,105220.0,105210.0,0.36013429]
[1737716113008,0.79782231,105220.0,105210.0,0.36113429]
[1737716113209,0.77881431,105220.0,105210.0,0.36334539]
[1737716114206,0.68377431,105220.0,105210.0,0.36334539]
[1737716114623,0.68377431,105220.0,105210.0,0.36313429]
[1737716115046,0.66476631,105220.0,105210.0,0.36313429]
[1737716115407,0.60774231,105220.0,105210.0,0.38257217]
[1737716115626,0.58873431,105220.0,105210.0,0.38257217]
[1737716116023,0.55071831,105220.0,105210.0,0.38257217]
[1737716116227,0.48951225,105220.0,105210.0,0.38257217]
[1737716116414,0.48951225,105220.0,105210.0,0.39286591]
[1737716116836,0.46949414,105220.0,105210.0,0.39286591]
[1737716117142,0.45048614,105220.0,105210.0,0.39286591]
[1737716117346,0.41247014,105220.0,105210.0,0.39286591]
[1737716117550,0.37445414,105220.0,105210.0,0.39286591]
[1737716117745,0.37445414,105220.0,105210.0,0.37286591]
[1737716117967,0.37445414,105220.0,105210.0,0.39286591]
[1737716118264,0.33643814,105220.0,105210.0,0.39286591]
[1737716118434,0.27941414,105220.0,105210.0,0.39286591]
[1737716118730,0.27691414,105220.0,105210.0,0.39286591]
[1737716119174,0.21989014,105220.0,105210.0,0.39286591]
[1737716119348,0.18192337,105220.0,105210.0,0.39286591]
[1737716119680,0.18192337,105220.0,105210.0,0.54286591]
[1737716120089,0.12489937,105220.0,105210.0,0.54286591]
[1737716120242,0.08312766,105220.0,105210.0,0.54286591]
[1737716121065,0.04511166,105220.0,105210.0,0.54286591]
[1737716121480,0.04511166,105220.0,105210.0,0.54300791]
[1737716121857,0.04540987,105220.0,105210.0,0.54300791]
[1737716122198,0.04540987,105220.0,105210.0,0.54200791]
[1737716122578,0.04540987,105220.0,105210.0,0.54300791]
[1737716122975,0.04540987,105220.0,105210.0,0.54100791]
[1737716123156,0.04540987,105220.0,105210.0,0.54300791]
[1737716124309,0.04540987,105220.0,105210.0,0.39300791]
[1737716128279,8.7e-07,105220.0,105210.0,0.39300791]
[1737716133123,8.7e-07,105220.0,105210.0,0.38196791]
[1737716133326,8.7e-07,105220.0,105210.0,0.39300791]
[1737716135112,8.7e-07,105220.0,105210.0,0.39296791]
[1737716137097,8.7e-07,105220.0,105210.0,0.49296791]
[1737716140734,8.7e-07,105220.0,105210.0,0.81596791]
[1737716140961,8.7e-07,105220.0,105210.0,0.90092687]
[1737716142801,8.7e-07,105220.0,105210.0,0.88092687]
[1737716143761,8.7e-07,105220.0,105210.0,0.79596791]
[1737716143881,8.7e-07,105220.0,105210.0,0.81596791]
[1737716145412,8.7e-07,105220.0,105210.0,0.79596791]
[1737716145659,8.7e-07,105220.0,105210.0,0.81596791]
[1737716146143,8.7e-07,105220.0,105210.0,0.79596791]
[1737716146720,8.7e-07,105220.0,105210.0,0.81596791]
[1737716148087,8.7e-07,105220.0,105210.0,0.79596791]
[1737716148674,8.7e-07,105220.0,105210.0,0.89606791]
[1737716148872,8.7e-07,105220.0,105210.0,0.81596791]
[1737716152713,8.7e-07,105220.0,105210.0,0.82546367]
[1737716152908,8.7e-07,105220.0,105210.0,0.81596791]
[1737716162884,8.7e-07,105220.0,105210.0,0.63886791]
[1737716163027,8.7e-07,105220.0,105210.0,0.63986791]
[1737716163238,8.7e-07,105220.0,105210.0,0.55926791]
[1737716164493,8.7e-07,105220.0,105210.0,0.23626791]
[1737716168744,0.04630087,105220.0,105210.0,0.22526791]
[1737716168994,0.04630087,105220.0,105210.0,0.23626791]
[1737716177376,8.7e-07,105220.0,105210.0,0.23626791]
[1737716178647,8.7e-07,105220.0,105210.0,0.23626791]
[1737716178870,8.7e-07,105220.0,105210.0,0.31456791]
[1737716184455,8.7e-07,105220.0,105210.0,0.46456791]
[1737716207050,8.7e-07,105220.0,105210.0,0.48756791]
[1737716212963,0.00029862,105230.0,105220.0,0.245038]